fUST/lending_fUST_20250128
["ID","MTS","AMOUNT","RATE_DAILY","PERIOD"]
[350651868,1738027847061,-500.0,0.00017805,2]
[350651870,1738027847071,-298.66746507,0.00017942,2]
[350651872,1738027847080,-420.0,0.00018107,2]
[350651874,1738027847090,-197.99552245,0.00018334,2]
[350651876,1738027847100,-155.77,0.000186,2]
[350651878,1738027847109,-500.0,0.00018919,2]
[350651880,1738027847118,-11277.72681553,0.00019001,2]
[350651927,1738028719485,161.309389,0.00013973,2]
[350651929,1738028834127,-192.06575874,0.000164,2]
[350651930,1738028834149,-197.09762083,0.00016471,2]
[350651931,1738028834171,-505.68955356,0.00016572,2]
[350651932,1738028834195,-528.33490922,0.00016572,2]
[350651933,1738028834216,-528.26845863,0.00016572,2]
[350651934,1738028834238,-500.0,0.00016572,2]
[350651935,1738028834258,-500.0,0.00016573,2]
[350651936,1738028834280,-509.99162441,0.00016709,2]
[350651937,1738028836140,-10.33773559,0.00016709,2]
[350651938,1738028836161,-1820.5146361,0.00018209,2]
[350651939,1738028836188,-500.0,0.00018919,2]
[350651940,1738028836209,-500.0,0.00019,2]
[350651941,1738028836230,-1346.7122891,0.00019169,2]
[350651942,1738028836251,-1445.89162691,0.00020002,2]
[350651943,1738028836274,-500.0,0.00020101,2]
[350651944,1738028836298,-500.0,0.00020101,2]
[350651945,1738028836319,-362.48000897,0.00020101,2]
[350651946,1738028836342,-430.74561184,0.00020101,2]
[350651948,1738028958139,-1292.5612,0.00016015,2]
[350652026,1738029032155,-41.25859383,0.00016015,2]
[350652028,1738029032164,-500.0,0.00018919,2]
[350652030,1738029032173,-160.345554,0.00019178,2]
[350652032,1738029032183,-500.0,0.00020101,2]
[350652034,1738029032192,-157.2622959,0.00020101,2]
[350652036,1738029032204,-342.7377041,0.00020101,2]
[350652038,1738029032213,-505.58722902,0.00020101,2]
[350652040,1738029032223,-509.35179938,0.00020101,2]
[350652042,1738029032231,-505.33287804,0.00020101,2]
[350652044,1738029032240,-504.44448588,0.00020101,2]
[350652046,1738029032249,-510.65656565,0.00020101,2]
[350652050,1738029032259,-505.21996855,0.00020101,2]
[350652052,1738029032268,-513.88342651,0.00020101,2]
[350652054,1738029032277,-507.86300176,0.00020101,2]
[350652056,1738029032287,-506.74114618,0.00020101,2]
[350652058,1738029032297,-506.53511799,0.00020101,2]
[350652060,1738029032306,-438.02047698,0.00020101,2]
[350652195,1738029037787,-66.67137301,0.00020101,2]
[350652197,1738029037797,-518.15730969,0.00020101,2]
[350652198,1738029037807,-500.0,0.00020101,2]
[350652200,1738029037817,-424.82046304,0.00020101,2]
[350652236,1738029039974,-105.06787251,0.00020101,2]
[350652238,1738029039985,-528.80038371,0.00020101,2]
[350652240,1738029039995,-500.0,0.00020101,2]
[350652241,1738029040005,-1445.89162691,0.00020102,2]
[350652243,1738029040015,-232.3991529,0.000202,2]
[350652245,1738029040025,-500.0,0.00020201,2]
[350652247,1738029040035,-311.26478774,0.00020201,2]
[350652248,1738029040049,-188.73521226,0.00020201,2]
[350652249,1738029040059,-500.0,0.00020201,2]
[350652250,1738029040068,-510.59839989,0.00020201,2]
[350652251,1738029040077,-500.0,0.00020201,2]
[350652252,1738029040087,-500.0,0.00020201,2]
[350652253,1738029040096,-500.0,0.00020201,2]
[350652254,1738029040105,-382.38729476,0.00020201,2]
[350652289,1738029045953,-117.61270524,0.00020201,2]
[350652290,1738029045969,-500.0,0.00020201,2]
[350652291,1738029045978,-500.0,0.00020201,2]
[350652292,1738029045988,-500.0,0.00020201,2]
[350652293,1738029045998,-500.0,0.00020201,2]
[350652294,1738029046007,-462.38789965,0.00020201,2]
[350652295,1738029046039,-63.12258161,0.00020201,2]
[350652296,1738029046049,-500.0,0.00020201,2]
[350652297,1738029046058,-500.0,0.00020201,2]
[350652298,1738029046068,-500.0,0.00020201,2]
[350652299,1738029046077,-938.69,0.00020201,2]
[350652300,1738029046086,-500.0,0.00020201,2]
[350652301,1738029046095,-500.0,0.00020201,2]
[350652302,1738029046104,-1445.89162691,0.00020202,2]
[350652303,1738029046113,-208.39750697,0.00020237,2]
[350652304,1738029046123,-500.0,0.00020237,2]
[350652305,1738029046133,-500.0,0.00020237,2]
[350652306,1738029046142,-500.0,0.00020237,2]
[350652307,1738029046152,-500.0,0.00020237,2]
[350652308,1738029046162,-500.0,0.00020237,2]
[350652309,1738029046172,-211.40005291,0.00020237,2]
[350652310,1738029046182,-500.0,0.00020237,2]
[350652311,1738029046192,-500.0,0.00020237,2]
[350652312,1738029046201,-504.79682061,0.00020237,2]
[350652313,1738029046211,-500.0,0.00020237,2]
[350652314,1738029046220,-500.0,0.00020237,2]
[350652315,1738029046229,-517.10970863,0.00020237,2]
[350652316,1738029046238,-500.0,0.00020237,2]
[350652317,1738029046247,-500.0,0.00020238,2]
[350652318,1738029046257,-500.0,0.00020238,2]
[350652319,1738029046267,-396.83768005,0.000203,2]
[350652320,1738029046276,-500.0,0.000203,2]
[350652321,1738029046285,-500.0,0.000203,2]
[350652322,1738029046295,-505.05352536,0.000203,2]
[350652323,1738029046304,-429.13263268,0.000203,2]
[350652324,1738029046314,-517.45428663,0.000203,2]
[350652325,1738029046324,-510.54582154,0.000203,2]
[350652326,1738029046334,-504.81241786,0.000203,2]
[350652327,1738029046343,-500.0,0.000203,2]
[350652328,1738029046352,-505.14425936,0.000203,2]
[350652329,1738029046362,-500.0,0.000203,2]
[350652330,1738029046371,-501.92527173,0.000203,2]
[350652331,1738029046383,-507.50942371,0.000203,2]
[350652332,1738029046392,-506.41779802,0.000203,2]
[350652333,1738029046401,-621.39563639,0.000203,2]
[350652334,1738029046411,-508.20550695,0.000203,2]
[350652335,1738029046420,-504.89999041,0.000203,2]
[350652336,1738029046430,-500.0,0.000203,2]
[350652337,1738029046439,-500.0,0.000203,2]
[350652338,1738029046448,-500.0,0.000203,2]
[350652339,1738029046458,-500.0,0.000203,2]
[350652340,1738029046467,-501.12956765,0.000203,2]
[350652341,1738029046476,-607.35667356,0.00020301,2]
[350652342,1738029046485,-1445.89162691,0.00020302,2]
[350652343,1738029046494,-500.0,0.00020338,2]
[350652344,1738029046503,-500.0,0.00020338,2]
[350652345,1738029046513,-500.0,0.00020338,2]
[350652346,1738029046522,-500.0,0.00020338,2]
[350652347,1738029046531,-500.0,0.00020338,2]
[350652348,1738029046541,-500.0,0.00020338,2]
[350652349,1738029046550,-500.0,0.00020338,2]
[350652350,1738029046560,-526.79349789,0.00020338,2]
[350652351,1738029046569,-500.0,0.00020338,2]
[350652352,1738029046579,-535.13311752,0.00020338,2]
[350652353,1738029046588,-531.80778706,0.00020338,2]
[350652354,1738029046598,-159.586022,0.00020338,2]
[350652355,1738029046607,-500.0,0.00020338,2]
[350652356,1738029046616,-500.0,0.00020338,2]
[350652357,1738029046626,-938.69,0.00020338,2]
[350652358,1738029046636,-500.0,0.00020338,2]
[350652359,1738029046645,-500.0,0.00020338,2]
[350652360,1738029046654,-500.0,0.00020374,2]
[350652361,1738029046664,-228.4104229,0.00020374,2]
[350652362,1738029046673,-500.0,0.00020374,2]
[350652363,1738029046682,-500.0,0.00020374,2]
[350652364,1738029046691,-445.8779921,0.00020374,2]
[350652365,1738029046702,-500.0,0.00020374,2]
[350652366,1738029046711,-500.0,0.00020374,2]
[350652367,1738029046721,-500.0,0.00020374,2]
[350652368,1738029046731,-526.25875147,0.00020374,2]
[350652369,1738029046741,-523.34444674,0.00020374,2]
[350652370,1738029046752,-500.0,0.00020375,2]
[350652371,1738029046762,-500.0,0.00020375,2]
[350652372,1738029046772,-1445.89162691,0.00020402,2]
[350652373,1738029046785,-522.52188978,0.00020437,2]
[350652374,1738029046795,-528.05108664,0.00020437,2]
[350652375,1738029046806,-500.0,0.00020437,2]
[350652376,1738029046815,-509.43695354,0.00020437,2]
[350652377,1738029046825,-494.4985092,0.00020437,2]
[350652378,1738029046834,-471.73154137,0.00020437,2]
[350652379,1738029046843,-500.0,0.00020437,2]
[350652380,1738029046853,-500.0,0.00020437,2]
[350652381,1738029046862,-500.0,0.00020475,2]
[350652382,1738029046871,-532.81217695,0.00020475,2]
[350652383,1738029046880,-525.70342004,0.00020475,2]
[350652384,1738029046890,-500.0,0.00020475,2]
[350652385,1738029046900,-524.08486026,0.00020475,2]
[350652386,1738029046909,-500.0,0.00020475,2]
[350652387,1738029046918,-500.0,0.00020475,2]
[350652388,1738029046928,-292.55964329,0.00020475,2]
[350652389,1738029046937,-500.0,0.00020475,2]
[350652390,1738029046946,-520.50265786,0.00020475,2]
[350652391,1738029046956,-938.69,0.00020475,2]
[350652392,1738029046975,-534.56232958,0.00020475,2]
[350652393,1738029046984,-520.48148132,0.00020475,2]
[350652394,1738029046993,-1445.89162691,0.00020502,2]
[350652395,1738029047002,-520.25971131,0.00020511,2]
[350652396,1738029047012,-500.0,0.00020511,2]
[350652397,1738029047021,-528.45176624,0.00020511,2]
[350652398,1738029047031,-500.0,0.00020511,2]
[350652399,1738029047040,-500.0,0.00020511,2]
[350652400,1738029047050,-500.0,0.00020511,2]
[350652401,1738029047059,-1118.1365614,0.00020512,5]
[350652402,1738029047068,-500.0,0.00020512,2]
[350652403,1738029047078,-500.0,0.00020512,2]
[350652404,1738029047087,-500.0,0.00020542,2]
[350652405,1738029047098,-232.39915287,0.0002055,2]
[350652406,1738029047108,-500.0,0.00020574,2]
[350652407,1738029047117,-320.69227681,0.00020574,2]
[350652408,1738029047126,-1445.89162691,0.00020602,2]
[350652409,1738029047136,-619.49400898,0.00020612,2]
[350652410,1738029047145,-500.98975995,0.00020612,2]
[350652411,1738029047154,-500.0,0.00020612,2]
[350652412,1738029047163,-500.0,0.00020612,2]
[350652413,1738029047172,-500.0,0.00020612,2]
[350652414,1738029047181,-938.69,0.00020612,2]
[350652415,1738029047190,-500.0,0.00020648,2]
[350652416,1738029047199,-500.0,0.00020648,2]
[350652417,1738029047208,-500.0,0.00020648,2]
[350652418,1738029047217,-500.0,0.00020648,2]
[350652419,1738029047227,-500.0,0.00020649,2]
[350652420,1738029047236,-500.0,0.00020649,2]
[350652421,1738029047246,-1445.89162691,0.00020702,2]
[350652422,1738029047256,-500.0,0.00020711,2]
[350652423,1738029047265,-560.06681459,0.00020749,2]
[350652424,1738029047274,-354.06941491,0.00020749,2]
[350652425,1738029047283,-184.49063819,0.00020749,2]
[350652426,1738029047293,-938.69,0.00020749,2]
[350652427,1738029047302,-331.97044956,0.00020784,2]
[350652428,1738029047311,-500.0,0.00020784,2]
[350652429,1738029047320,-500.0,0.00020784,2]
[350652430,1738029047330,-503.41846824,0.00020784,2]
[350652431,1738029047339,-509.19144426,0.00020784,2]
[350652432,1738029047349,-500.0,0.00020784,2]
[350652433,1738029047358,-500.0,0.00020784,2]
[350652434,1738029047367,-213.23954091,0.00020784,2]
[350652435,1738029047376,-500.0,0.00020784,2]
[350652436,1738029047385,-500.0,0.00020784,2]
[350652437,1738029047394,-245.42761854,0.00020784,2]
[350652438,1738029047408,-254.57238146,0.00020784,2]
[350652439,1738029047417,-57.46556549,0.00020784,2]
[350652454,1738029702785,158.342068,0.00013973,2]
[350652457,1738030027122,-153.0,0.0001623,2]
[350652458,1738030027144,-153.0,0.0001623,2]
[350652459,1738030027165,-153.0,0.00016236,2]
[350652460,1738030027186,-153.0,0.00016236,2]
[350652461,1738030027207,-153.0,0.00016241,2]
[350652462,1738030027227,-542.3952548,0.00018383,2]
[350652463,1738030027248,-500.0,0.00018919,2]
[350652464,1738030027275,-244.0361062,0.00019113,2]
[350652465,1738030027297,-148.6064471,0.00019178,2]
[350652466,1738030033092,-12.0133849,0.00019178,2]
[350652467,1738030033113,-1021.0323731,0.0002,2]
[350652468,1738030049087,-540.3224408,0.0002,2]
[350652469,1738030054106,-1490.6451861,0.0002,2]
[350652470,1738030054127,-152.0,0.00020057,2]
[350652471,1738030054150,-300.0,0.000201,2]
[350652472,1738030054171,-500.0,0.00020101,7]
[350652473,1738030054194,-505.59551657,0.00020101,2]
[350652474,1738030054216,-200.63698017,0.00020101,2]
[350652475,1738030054237,-502.93913952,0.00020101,2]
[350652476,1738030054260,-514.01791869,0.00020101,2]
[350652477,1738030054286,-503.99100447,0.00020101,2]
[350652478,1738030054307,-358.8690338,0.000202,2]
[350652479,1738030054328,-354.177473,0.000202,2]
[350652480,1738030054351,-353.8505864,0.000202,2]
[350652481,1738030054375,-630.23294525,0.00020237,2]
[350652482,1738030054396,-500.0,0.00020237,2]
[350652483,1738030054418,-500.0,0.00020237,2]
[350652484,1738030054439,-475.16852724,0.00020237,2]
[350652546,1738030232199,-506.37706183,0.00018919,2]
[350652548,1738030232208,-164.744043,0.00019406,2]
[350652550,1738030232218,-372.07632121,0.00020237,2]
[350652557,1738030232271,-127.92367879,0.00020237,2]
[350652559,1738030232281,-500.0,0.00020237,2]
[350652561,1738030232290,-4231.34274443,0.0002028,2]
[350652697,1738030238185,-2761.38285943,0.0002028,2]
[350652698,1738030238195,-300.0,0.00020299,2]
[350652699,1738030238204,-500.0,0.000203,2]
[350652700,1738030238213,-515.86487964,0.00020308,2]
[350652702,1738030238222,-536.76972344,0.00020308,2]
[350652703,1738030238232,-489.9791227,0.00020308,2]
[350652704,1738030238242,-506.78604162,0.00020308,2]
[350652705,1738030238252,-506.55812867,0.00020308,2]
[350652706,1738030238262,-552.34834993,0.00020308,2]
[350652707,1738030238271,-150.81,0.00020308,2]
[350652708,1738030238282,-505.10035405,0.00020308,2]
[350652709,1738030238291,-507.30372831,0.00020308,2]
[350652710,1738030238300,-504.31807822,0.00020308,2]
[350652711,1738030238311,-496.33586959,0.00020308,2]
[350652712,1738030238322,-506.19107294,0.00020308,2]
[350652713,1738030238331,-500.0,0.00020308,7]
[350652714,1738030238341,-380.8897179,0.00020334,2]
[350652715,1738030238350,-500.0,0.00020335,2]
[350652716,1738030238360,-500.0,0.00020335,2]
[350652717,1738030238369,-500.0,0.00020335,2]
[350652718,1738030238378,-500.0,0.00020335,2]
[350652719,1738030238387,-439.85781869,0.00020335,2]
[350652720,1738030238398,-803.34218131,0.00020335,2]
[350652721,1738030238407,-500.0,0.00020335,2]
[350652722,1738030238416,-500.0,0.00020335,2]
[350652723,1738030238424,-500.0,0.00020335,2]
[350652724,1738030238433,-500.0,0.00020335,2]
[350652725,1738030238442,-504.65809139,0.00020335,2]
[350652726,1738030238451,-500.0,0.00020335,2]
[350652727,1738030238460,-513.15007235,0.00020335,2]
[350652728,1738030238469,-500.0,0.00020335,2]
[350652729,1738030238478,-500.0,0.00020336,2]
[350652730,1738030238487,-500.0,0.00020336,2]
[350652731,1738030238496,-503.76051363,0.00020336,2]
[350652732,1738030238505,-504.31826158,0.00020336,2]
[350652733,1738030238514,-500.0,0.00020336,2]
[350652734,1738030238523,-510.86945106,0.00020336,2]
[350652735,1738030238532,-501.30401756,0.00020336,2]
[350652736,1738030238542,-514.80403714,0.00020336,2]
[350652737,1738030238551,-506.61925168,0.00020336,2]
[350652738,1738030238560,-507.63111726,0.00020336,2]
[350652739,1738030238569,-500.0,0.00020336,2]
[350652740,1738030238579,-503.4634559,0.00020336,2]
[350652741,1738030238587,-535.28241543,0.00020336,2]
[350652742,1738030238597,-500.0,0.00020336,2]
[350652743,1738030238605,-500.0,0.00020369,2]
[350652744,1738030238614,-500.0,0.00020369,2]
[350652745,1738030238623,-513.67911058,0.00020374,2]
[350652746,1738030238632,-500.0,0.00020374,2]
[350652747,1738030238641,-500.0,0.00020472,2]
[350652748,1738030238650,-537.99505527,0.00020472,2]
[350652749,1738030238659,-500.0,0.00020472,2]
[350652750,1738030238668,-500.0,0.00020472,2]
[350652751,1738030238677,-1243.2,0.00020472,2]
[350652752,1738030238687,-500.0,0.00020472,2]
[350652753,1738030238699,-500.0,0.00020472,2]
[350652754,1738030238709,-500.0,0.00020472,2]
[350652755,1738030238719,-500.0,0.00020472,2]
[350652756,1738030238728,-500.0,0.00020472,2]
[350652757,1738030238737,-500.0,0.00020472,2]
[350652758,1738030238747,-500.0,0.00020473,2]
[350652759,1738030238756,-500.0,0.00020473,2]
[350652760,1738030238766,-500.0,0.00020506,2]
[350652761,1738030238775,-500.0,0.00020506,2]
[350652762,1738030238785,-500.0,0.00020609,2]
[350652763,1738030238795,-1243.2,0.00020609,2]
[350652764,1738030238805,-500.0,0.00020609,2]
[350652765,1738030238814,-500.0,0.00020609,2]
[350652766,1738030238824,-500.0,0.00020609,2]
[350652767,1738030238834,-253.78,0.00020609,2]
[350652768,1738030238843,-500.0,0.0002061,2]
[350652769,1738030238853,-500.0,0.0002061,2]
[350652770,1738030238862,-500.0,0.00020643,2]
[350652771,1738030238872,-500.0,0.00020643,2]
[350652772,1738030238881,-207.06898785,0.00020746,2]
[350652773,1738030238891,-1243.2,0.00020746,2]
[350652774,1738030238900,-500.0,0.00020746,2]
[350652775,1738030238910,-500.0,0.00020746,2]
[350652776,1738030238920,-500.0,0.00020746,2]
[350652777,1738030238929,-500.0,0.00020747,2]
[350652778,1738030238939,-290.36957775,0.00020747,2]
[350652779,1738030238948,-500.0,0.0002078,2]
[350652780,1738030238957,-500.0,0.0002078,2]
[350652781,1738030238966,-1445.89162691,0.00020802,2]
[350652782,1738030238976,-1243.2,0.00020883,2]
[350652783,1738030238985,-500.0,0.00020883,2]
[350652784,1738030238994,-500.0,0.00020883,2]
[350652785,1738030239003,-500.0,0.00020883,2]
[350652786,1738030239012,-500.0,0.00020884,2]
[350652787,1738030239022,-1445.89162691,0.00020902,2]
[350652788,1738030239031,-500.0,0.00020917,2]
[350652789,1738030239041,-500.0,0.00020917,2]
[350652790,1738030239050,-500.0,0.00020927,2]
[350652791,1738030239059,-504.7781859,0.00020993,9]
[350652792,1738030239068,-1445.89162691,0.00021002,2]
[350652793,1738030239078,-1243.2,0.0002102,2]
[350652794,1738030239088,-346.63341981,0.0002102,2]
[350652795,1738030239098,-500.0,0.0002102,2]
[350652796,1738030239108,-500.0,0.0002102,2]
[350652797,1738030239117,-502.9395271,0.00021021,2]
[350652798,1738030239127,-247.31322463,0.00021024,2]
[350652799,1738030239136,-160.0,0.00021035,3]
[350652800,1738030239146,-500.0,0.00021054,2]
[350652801,1738030239155,-500.0,0.00021054,2]
[350652802,1738030239165,-1445.89162691,0.00021102,2]
[350652803,1738030239174,-1243.2,0.00021157,2]
[350652804,1738030239184,-500.0,0.00021157,2]
[350652805,1738030239194,-299.22,0.00021157,2]
[350652806,1738030239203,-500.0,0.00021191,2]
[350652807,1738030239213,-500.0,0.00021191,2]
[350652808,1738030239222,-1445.89162691,0.00021202,2]
[350652809,1738030239232,-158.342068,0.00021209,2]
[350652810,1738030239241,-2314.779,0.00021235,2]
[350652811,1738030239251,-1243.2,0.00021294,2]
[350652812,1738030239260,-500.0,0.00021294,2]
[350652813,1738030239269,-507.06403779,0.00021301,2]
[350652814,1738030239279,-1445.89162691,0.00021302,2]
[350652815,1738030239289,-423.06022298,0.00021326,2]
[350652816,1738030239298,-219.19234644,0.00021326,2]
[350652817,1738030239315,-280.80765356,0.00021326,2]
[350652819,1738030239325,-500.0,0.00021326,2]
[350652820,1738030239335,-500.0,0.00021326,2]
[350652821,1738030239344,-500.0,0.00021326,2]
[350652822,1738030239355,-20.13100391,0.00021326,2]
[350652823,1738030239367,-479.86899609,0.00021326,2]
[350652824,1738030239376,-500.0,0.00021326,2]
[350652825,1738030239385,-500.0,0.00021326,2]
[350652826,1738030239405,-165.39708735,0.00021326,2]
[350652827,1738030239419,-136.42643002,0.00021326,2]
[350652828,1738030239431,-363.57356998,0.00021326,2]
[350652829,1738030239440,-354.44595402,0.00021326,2]
[350652830,1738030239452,-145.55404598,0.00021326,2]
[350652831,1738030239461,-500.0,0.00021326,2]
[350652832,1738030239471,-491.47546822,0.00021326,2]
[350652845,1738030240188,-8.52453178,0.00021326,2]
[350652846,1738030240199,-500.0,0.00021326,2]
[350652847,1738030240208,-501.7605659,0.00021326,2]
[350652848,1738030240218,-500.0,0.00021326,2]
[350652849,1738030240228,-500.0,0.00021326,2]
[350652850,1738030240237,-500.0,0.00021328,2]
[350652851,1738030240247,-104.97621635,0.00021328,2]
[350652852,1738030240259,-395.02378365,0.00021328,2]
[350652853,1738030240270,-247.31322463,0.0002135,2]
[350652854,1738030240280,-1445.89162691,0.00021402,2]
[350652855,1738030240290,-1243.2,0.00021431,2]
[350652856,1738030240300,-500.0,0.00021431,2]
[350652857,1738030240312,-500.0,0.00021465,2]
[350652858,1738030240323,-500.0,0.00021465,2]
[350652859,1738030240332,-176.74676176,0.00021469,2]
[350652860,1738030240341,-501.46639603,0.00021475,2]
[350652861,1738030240351,-1445.89162691,0.00021502,2]
[350652862,1738030240361,-1243.2,0.00021568,2]
[350652863,1738030240370,-500.0,0.00021568,2]
[350652864,1738030240380,-157.136,0.000216,2]
[350652865,1738030240389,-3052.0,0.000216,4]
[350652866,1738030240398,-499.0,0.00021601,2]
[350652867,1738030240407,-1445.89162691,0.00021602,2]
[350652868,1738030240416,-500.0,0.00021602,2]
[350652869,1738030240426,-500.0,0.00021602,2]
[350652870,1738030240438,-247.31322463,0.00021676,2]
[350652871,1738030240447,-1445.89162691,0.00021702,2]
[350652872,1738030240457,-1243.2,0.00021705,2]
[350652873,1738030240467,-550.01793169,0.00021705,2]
[350652874,1738030240477,-500.0,0.00021739,2]
[350652875,1738030240487,-500.0,0.00021739,2]
[350652876,1738030240496,-1324.54816678,0.00021801,5]
[350652877,1738030240507,-4086.86241442,0.00021801,5]
[350652878,1738030240516,-1445.89162691,0.00021802,2]
[350652879,1738030240526,-160.0,0.00021814,4]
[350652880,1738030240535,-1243.2,0.00021842,2]
[350652881,1738030240544,-397.673,0.00021861,2]
[350652882,1738030240554,-424.95096919,0.00021876,2]
[350652883,1738030240563,-500.0,0.00021876,2]
[350652884,1738030240572,-182.29556458,0.000219,120]
[350652885,1738030240582,-1445.89162691,0.00021902,2]
[350652886,1738030240591,-215.2923755,0.00021918,2]
[350652887,1738030240601,-159.3434332,0.00021918,2]
[350652888,1738030240610,-154.3071358,0.00021918,2]
[350652889,1738030240620,-155.206811,0.00021918,2]
[350652890,1738030240629,-154.3274537,0.00021918,2]
[350652891,1738030240639,-153.0,0.00021918,2]
[350652892,1738030240648,-154.3274537,0.00021918,2]
[350652893,1738030240657,-153.0,0.00021918,2]
[350652894,1738030240666,-153.0,0.00021918,2]
[350652895,1738030240675,-153.0,0.00021918,2]
[350652896,1738030240685,-1243.2,0.00021979,2]
[350652897,1738030240694,-1445.89162691,0.00022002,6]
[350652898,1738030240703,-247.31322463,0.00022002,2]
[350652899,1738030240713,-500.0,0.00022013,2]
[350652900,1738030240722,-250.0,0.00022044,2]
[350652901,1738030240732,-150.782,0.00022044,2]
[350652902,1738030240741,-5014.78476761,0.0002207,2]
[350652903,1738030240750,-151.0,0.0002207,7]
[350652904,1738030240759,-151.0,0.0002207,7]
[350652905,1738030240768,-420.0,0.00022097,2]
[350652906,1738030240777,-1445.89162691,0.00022102,4]
[350652907,1738030240786,-248.991,0.00022112,2]
[350652908,1738030240795,-231.13,0.00022112,2]
[350652909,1738030240805,-252.755,0.00022112,2]
[350652910,1738030240814,-2072.865,0.00022112,2]
[350652911,1738030240822,-537.0,0.00022112,2]
[350652912,1738030240831,-151.0,0.00022112,7]
[350652913,1738030240841,-1243.2,0.00022116,2]
[350652914,1738030240850,-151.0,0.00022117,7]
[350652915,1738030240860,-500.0,0.0002215,2]
[350652916,1738030240870,-224.34,0.000222,2]
[350652917,1738030240880,-1445.89162691,0.00022202,6]
[350652918,1738030240889,-500.0,0.00022219,7]
[350652919,1738030240899,-551.90010244,0.00022219,7]
[350652920,1738030240908,-1243.2,0.00022253,2]
[350652921,1738030240918,-500.0,0.00022287,2]
[350652922,1738030240927,-1445.89162691,0.00022302,2]
[350652923,1738030240937,-247.31322463,0.00022328,2]
[350652924,1738030240946,-1243.2,0.0002239,2]
[350652925,1738030240956,-1445.89162691,0.00022402,7]
[350652926,1738030240965,-500.0,0.00022424,2]
[350652927,1738030240975,-305.377539,0.000225,10]
[350652928,1738030240984,-1445.89162691,0.00022502,6]
[350652929,1738030240993,-239.7165967,0.00022515,2]
[350652930,1738030241002,-1243.2,0.00022527,2]
[350652931,1738030241011,-500.0,0.00022561,2]
[350652932,1738030241020,-160.0,0.00022594,5]
[350652933,1738030241029,-153.548947,0.00022595,7]
[350652934,1738030241038,-6724.1298452,0.00022595,2]
[350652939,1738030243354,-2415.14008613,0.00022595,2]
[350652940,1738030243364,-1445.89162691,0.00022602,4]
[350652941,1738030243373,-1267.64966247,0.0002264,3]
[350652942,1738030243383,-247.31322463,0.00022654,2]
[350652943,1738030243393,-1243.2,0.00022664,2]
[350652944,1738030243403,-151.0,0.00022665,7]
[350652945,1738030243412,-255.0,0.00022689,15]
[350652946,1738030243421,-500.0,0.00022698,2]
[350652947,1738030243431,-1445.89162691,0.00022702,3]
[350652948,1738030243441,-211.53550541,0.00022738,2]
[350652949,1738030243450,-595.60583693,0.00022738,2]
[350652950,1738030243460,-160.95157742,0.00022738,2]
[350652951,1738030243469,-67702.55786577,0.00022739,2]
[350652952,1738030243478,-151.0,0.00022739,7]
[350652953,1738030243487,-151.0,0.00022739,7]
[350652954,1738030243497,-151.0,0.00022739,7]
[350652955,1738030243506,-32607.19692371,0.0002274,30]
[350652963,1738030246040,-510.5,0.00022689,15]
[350652964,1738030246050,-5544.55382854,0.0002274,30]
[350652965,1738030869626,162.970727,0.00013973,2]
[350652971,1738031236111,-2460.9998178,0.0001657,2]
[350652972,1738031236143,-2176.84678544,0.0001657,2]
[350652973,1738031236166,-158.27005087,0.0001657,2]
[350652974,1738031236187,-219.37619585,0.00016737,2]
[350652975,1738031236209,-183.0,0.00016767,2]
[350652976,1738031236231,-153.0,0.00016768,2]
[350652977,1738031236254,-153.0,0.00016768,2]
[350652978,1738031236278,-2731.25613873,0.00018686,2]